[Event "Live Chess"]
[Site "Chess.com"]
[Date "2023.05.20"]
[Round "-"]
[White "manthanit"]
[Black "EdenHazard8"]
[Result "0-1"]
[WhiteElo "1017"]
[BlackElo "2068"]
[TimeControl "300"]
[EndTime "14:04:57 PDT"]
[Termination "EdenHazard8 won by checkmate"]

1. e4 {[%clk 0:04:59.1]} 1... e5 {[%clk 0:04:59.5]} 2. Nf3 {[%clk 0:04:58]} 2...
Nc6 {[%clk 0:04:59]} 3. d4 {[%clk 0:04:55.7]} 3... exd4 {[%clk 0:04:58]} 4. Nxd4
{[%clk 0:04:55.1]} 4... Nf6 {[%clk 0:04:57.6]} 5. Nxc6 {[%clk 0:04:53]} 5...
bxc6 {[%clk 0:04:57.5]} 6. e5 {[%clk 0:04:50.2]} 6... Qe7 {[%clk 0:04:56.9]} 7.
Bf4 {[%clk 0:04:46]} 7... Nd5 {[%clk 0:04:55.5]} 8. Bg3 {[%clk 0:04:25.1]} 8...
h5 {[%clk 0:04:54]} 9. h4 {[%clk 0:04:23.2]} 9... Nb6 {[%clk 0:04:52.4]} 10. Bd3
{[%clk 0:04:20.1]} 10... Qb4+ {[%clk 0:04:50.6]} 11. Nd2 {[%clk 0:04:07.4]}
11... Qxb2 {[%clk 0:04:45.9]} 12. O-O {[%clk 0:04:06.2]} 12... Bb7 {[%clk
0:04:38.5]} 13. Re1 {[%clk 0:04:04.9]} 13... O-O-O {[%clk 0:04:35.8]} 14. Bc4
{[%clk 0:03:52.5]} 14... g5 {[%clk 0:04:31.6]} 15. Bb3 {[%clk 0:03:50]} 15...
Be7 {[%clk 0:04:28.4]} 16. hxg5 {[%clk 0:03:46.6]} 16... h4 {[%clk 0:04:27.2]}
17. Bh2 {[%clk 0:03:35.6]} 17... Bxg5 {[%clk 0:04:20.8]} 18. Nc4 {[%clk
0:03:20.1]} 18... Qc3 {[%clk 0:04:12.1]} 19. Nxb6+ {[%clk 0:03:16.4]} 19... axb6
{[%clk 0:04:12]} 20. Qd3 {[%clk 0:03:01.8]} 20... Qxd3 {[%clk 0:04:08]} 21. cxd3
{[%clk 0:03:00.8]} 21... Rdg8 {[%clk 0:04:01.6]} 22. Bxf7 {[%clk 0:02:58.3]}
22... Rg7 {[%clk 0:04:00.3]} 23. Bc4 {[%clk 0:02:47.5]} 23... d6 {[%clk
0:03:58.9]} 24. exd6 {[%clk 0:02:46.2]} 24... c5 {[%clk 0:03:55.1]} 25. dxc7
{[%clk 0:02:41.5]} 25... Bc6 {[%clk 0:03:37.1]} 26. Ba6+ {[%clk 0:02:34.5]}
26... Bb7 {[%clk 0:03:35.8]} 27. Bb5 {[%clk 0:02:31.2]} 27... Bd2 {[%clk
0:03:31.4]} 28. Re8+ {[%clk 0:01:33]} 28... Rxe8 {[%clk 0:03:28.1]} 29. Bxe8
{[%clk 0:01:31.5]} 29... Rxg2+ {[%clk 0:03:26.1]} 30. Kh1 {[%clk 0:01:07.7]}
30... Rxf2+ {[%clk 0:03:23.1]} 31. Kg1 {[%clk 0:01:07]} 31... Rg2+ {[%clk
0:03:22.3]} 32. Kh1 {[%clk 0:01:06.1]} 32... Be3 {[%clk 0:03:18.3]} 33. Bd6
{[%clk 0:00:55.6]} 33... Rg1+ {[%clk 0:03:16.5]} 34. Kh2 {[%clk 0:00:51.5]}
34... Rxa1 {[%clk 0:03:14.8]} 35. Kh3 {[%clk 0:00:50.8]} 35... Rg1 {[%clk
0:03:03.4]} 36. Bf7 {[%clk 0:00:46.6]} 36... Kd7 {[%clk 0:02:46.6]} 37. Be5
{[%clk 0:00:38.9]} 37... Bf2 {[%clk 0:02:40.9]} 38. Bh2 {[%clk 0:00:26]} 38...
Rg7 {[%clk 0:02:33.5]} 39. Bh5 {[%clk 0:00:24.7]} 39... Bg2# {[%clk 0:02:30.9]}
0-1

[Event "Live Chess"]
[Site "Chess.com"]
[Date "2023.05.20"]
[Round "-"]
[White "GEMdzq"]
[Black "FlyingChessKestrel13"]
[Result "1-0"]
[WhiteElo "2234"]
[BlackElo "2105"]
[TimeControl "300"]
[EndTime "14:05:04 PDT"]
[Termination "GEMdzq won by resignation"]

1. e4 {[%clk 0:04:57.7]} 1... c5 {[%clk 0:04:58.4]} 2. d4 {[%clk 0:04:56.7]}
2... cxd4 {[%clk 0:04:57]} 3. c3 {[%clk 0:04:56.3]} 3... dxc3 {[%clk 0:04:55.8]}
4. Nxc3 {[%clk 0:04:56.2]} 4... e6 {[%clk 0:04:54.3]} 5. Bc4 {[%clk 0:04:55.7]}
5... d6 {[%clk 0:04:53.5]} 6. Nf3 {[%clk 0:04:54.9]} 6... a6 {[%clk 0:04:51.4]}
7. O-O {[%clk 0:04:53.7]} 7... Be7 {[%clk 0:04:50.7]} 8. Qe2 {[%clk 0:04:52.5]}
8... Nf6 {[%clk 0:04:49.4]} 9. Rd1 {[%clk 0:04:51.7]} 9... Qc7 {[%clk
0:04:48.1]} 10. Bf4 {[%clk 0:04:46.1]} 10... e5 {[%clk 0:04:44.3]} 11. Bg5
{[%clk 0:04:45]} 11... O-O {[%clk 0:04:42.2]} 12. Rac1 {[%clk 0:04:41.8]} 12...
Nc6 {[%clk 0:04:40.2]} 13. h3 {[%clk 0:04:40.7]} 13... Be6 {[%clk 0:04:36.3]}
14. Nd5 {[%clk 0:04:27.6]} 14... Bxd5 {[%clk 0:04:28.8]} 15. exd5 {[%clk
0:04:19.3]} 15... Nd8 {[%clk 0:04:25.3]} 16. Bxa6 {[%clk 0:04:13.5]} 16... Qb6
{[%clk 0:04:19.7]} 17. Bc4 {[%clk 0:04:09.8]} 17... e4 {[%clk 0:03:53.2]} 18.
Nd4 {[%clk 0:04:05.5]} 18... h6 {[%clk 0:03:46.2]} 19. Be3 {[%clk 0:04:02.6]}
19... Qc7 {[%clk 0:03:41.4]} 20. Bb5 {[%clk 0:03:54]} 20... Qb8 {[%clk
0:03:36.4]} 21. Nf5 {[%clk 0:03:51.9]} 21... Nxd5 {[%clk 0:03:22.5]} 22. Rxd5
{[%clk 0:03:47.9]} 22... Bf6 {[%clk 0:03:22]} 23. a4 {[%clk 0:03:27.9]} 23...
Be5 {[%clk 0:03:14.1]} 24. Qg4 {[%clk 0:03:24.5]} 24... Ne6 {[%clk 0:03:10.7]}
25. Bxh6 {[%clk 0:03:19]} 25... Kh7 {[%clk 0:03:04.8]} 26. Rxe5 {[%clk
0:03:06.8]} 26... dxe5 {[%clk 0:03:01.6]} 27. Bxg7 {[%clk 0:03:05.8]} 27... Rc8
{[%clk 0:02:35.2]} 28. Qh5+ {[%clk 0:03:04]} 1-0

[Event "Live Chess"]
[Site "Chess.com"]
[Date "2023.05.20"]
[Round "-"]
[White "DmitryVasliev"]
[Black "ExIsambard"]
[Result "1-0"]
[WhiteElo "1686"]
[BlackElo "1975"]
[TimeControl "300"]
[EndTime "14:05:08 PDT"]
[Termination "DmitryVasliev won by checkmate"]

1. d4 {[%clk 0:04:59]} 1... Nf6 {[%clk 0:04:58.7]} 2. Bf4 {[%clk 0:04:58.3]}
2... d5 {[%clk 0:04:57.6]} 3. e3 {[%clk 0:04:57.8]} 3... c6 {[%clk 0:04:57.3]}
4. c3 {[%clk 0:04:56.5]} 4... e6 {[%clk 0:04:54.2]} 5. Nd2 {[%clk 0:04:55.6]}
5... Be7 {[%clk 0:04:54]} 6. Bd3 {[%clk 0:04:49.8]} 6... Nbd7 {[%clk 0:04:53.2]}
7. Bg3 {[%clk 0:04:48.2]} 7... O-O {[%clk 0:04:52]} 8. f4 {[%clk 0:04:46]} 8...
c5 {[%clk 0:04:51.4]} 9. Nh3 {[%clk 0:04:44.1]} 9... a6 {[%clk 0:04:48.5]} 10.
O-O {[%clk 0:04:43]} 10... b5 {[%clk 0:04:46.6]} 11. Qe2 {[%clk 0:04:35.9]}
11... Bb7 {[%clk 0:04:45.7]} 12. Nf2 {[%clk 0:04:31.7]} 12... Rc8 {[%clk
0:04:44.1]} 13. Rae1 {[%clk 0:04:23]} 13... Qa5 {[%clk 0:04:41.9]} 14. Bb1
{[%clk 0:04:19.4]} 14... b4 {[%clk 0:04:36]} 15. Bh4 {[%clk 0:04:16.1]} 15...
bxc3 {[%clk 0:04:32.2]} 16. Nb3 {[%clk 0:04:10.3]} 16... Qb4 {[%clk 0:04:29.2]}
17. Nd3 {[%clk 0:03:59.4]} 17... Qc4 {[%clk 0:04:25.3]} 18. bxc3 {[%clk
0:03:48]} 18... cxd4 {[%clk 0:04:06.2]} 19. cxd4 {[%clk 0:03:42.9]} 19... Qa4
{[%clk 0:03:47.9]} 20. Ne5 {[%clk 0:03:25.5]} 20... Rc3 {[%clk 0:02:55.4]} 21.
Rf3 {[%clk 0:02:46.1]} 21... a5 {[%clk 0:02:53.2]} 22. Rh3 {[%clk 0:02:42.7]}
22... g6 {[%clk 0:02:37.8]} 23. Nxd7 {[%clk 0:02:19.3]} 23... Qxd7 {[%clk
0:02:34]} 24. Nc5 {[%clk 0:02:18.1]} 24... Bxc5 {[%clk 0:02:15.3]} 25. Bxf6
{[%clk 0:02:12.9]} 25... Be7 {[%clk 0:02:07.5]} 26. Be5 {[%clk 0:01:40]} 26...
f6 {[%clk 0:01:54.4]} 27. Qg4 {[%clk 0:01:37.7]} 27... Kg7 {[%clk 0:01:46]} 28.
Rxh7+ {[%clk 0:01:32]} 28... Kxh7 {[%clk 0:01:43.5]} 29. Qxg6+ {[%clk
0:01:31.1]} 29... Kh8 {[%clk 0:01:41.6]} 30. Qh7# {[%clk 0:01:29.7]} 1-0

[Event "Live Chess"]
[Site "Chess.com"]
[Date "2023.05.20"]
[Round "-"]
[White "Duke_of_Bebington"]
[Black "JoshMcK"]
[Result "1-0"]
[WhiteElo "1590"]
[BlackElo "1565"]
[TimeControl "300"]
[EndTime "14:05:09 PDT"]
[Termination "Duke_of_Bebington won by resignation"]

1. e4 {[%clk 0:04:57.7]} 1... c6 {[%clk 0:04:58.3]} 2. d4 {[%clk 0:04:56.2]}
2... d5 {[%clk 0:04:58.2]} 3. e5 {[%clk 0:04:54.5]} 3... c5 {[%clk 0:04:57]} 4.
c3 {[%clk 0:04:53.6]} 4... cxd4 {[%clk 0:04:56.2]} 5. cxd4 {[%clk 0:04:53.2]}
5... Nc6 {[%clk 0:04:55.8]} 6. Nf3 {[%clk 0:04:49.6]} 6... Bg4 {[%clk
0:04:55.4]} 7. Be2 {[%clk 0:04:48.7]} 7... e6 {[%clk 0:04:51.8]} 8. h3 {[%clk
0:04:46.5]} 8... Bxf3 {[%clk 0:04:50.9]} 9. Bxf3 {[%clk 0:04:45.6]} 9... Nge7
{[%clk 0:04:48.4]} 10. O-O {[%clk 0:04:42.6]} 10... Nf5 {[%clk 0:04:47]} 11. Nc3
{[%clk 0:04:41.8]} 11... Nfxd4 {[%clk 0:04:43.9]} 12. Bg4 {[%clk 0:04:34.5]}
12... Be7 {[%clk 0:04:42.1]} 13. Be3 {[%clk 0:04:33.1]} 13... Nf5 {[%clk
0:04:39.7]} 14. Bxf5 {[%clk 0:04:31.7]} 14... exf5 {[%clk 0:04:39.6]} 15. Qxd5
{[%clk 0:04:26.9]} 15... Qxd5 {[%clk 0:04:37.2]} 16. Nxd5 {[%clk 0:04:25.8]}
16... Nxe5 {[%clk 0:04:36.1]} 17. Nc7+ {[%clk 0:04:24.1]} 17... Kd7 {[%clk
0:04:32.2]} 18. Nxa8 {[%clk 0:04:23.1]} 18... Rxa8 {[%clk 0:04:31.8]} 19. Rad1+
{[%clk 0:04:14.8]} 19... Ke8 {[%clk 0:04:30.1]} 20. Bd4 {[%clk 0:04:11.7]} 20...
f6 {[%clk 0:04:27.3]} 21. Rfe1 {[%clk 0:04:08.6]} 21... Kf7 {[%clk 0:04:24.1]}
22. Bxe5 {[%clk 0:04:06.1]} 22... fxe5 {[%clk 0:04:22.8]} 23. Rxe5 {[%clk
0:04:06]} 23... g6 {[%clk 0:04:21.5]} 24. Rd7 {[%clk 0:04:02.9]} 24... Re8
{[%clk 0:04:19.6]} 25. Rxb7 {[%clk 0:04:00]} 25... Kf6 {[%clk 0:04:18.2]} 26.
Re2 {[%clk 0:03:53.8]} 26... a5 {[%clk 0:04:12]} 27. Ra7 {[%clk 0:03:48.7]}
27... Rd8 {[%clk 0:04:10.1]} 28. Rexe7 {[%clk 0:03:45.9]} 1-0

[Event "Live Chess"]
[Site "Chess.com"]
[Date "2023.05.20"]
[Round "-"]
[White "KeithArkell"]
[Black "GMHarry-youtube"]
[Result "1-0"]
[WhiteElo "2616"]
[BlackElo "2059"]
[TimeControl "300"]
[EndTime "14:05:15 PDT"]
[Termination "KeithArkell won by checkmate"]

1. d4 {[%clk 0:04:57.8]} 1... Nf6 {[%clk 0:04:57.5]} 2. Nf3 {[%clk 0:04:57]}
2... g6 {[%clk 0:04:57]} 3. c4 {[%clk 0:04:56.4]} 3... Bg7 {[%clk 0:04:56]} 4.
g3 {[%clk 0:04:55.9]} 4... O-O {[%clk 0:04:53.4]} 5. Bg2 {[%clk 0:04:55.2]} 5...
d5 {[%clk 0:04:51.9]} 6. cxd5 {[%clk 0:04:54]} 6... Nxd5 {[%clk 0:04:49.8]} 7.
Nc3 {[%clk 0:04:53.7]} 7... Nxc3 {[%clk 0:04:48.1]} 8. bxc3 {[%clk 0:04:51.6]}
8... c5 {[%clk 0:04:48]} 9. O-O {[%clk 0:04:50.4]} 9... Nc6 {[%clk 0:04:46.6]}
10. e3 {[%clk 0:04:49.3]} 10... cxd4 {[%clk 0:04:44.8]} 11. cxd4 {[%clk
0:04:49.2]} 11... e5 {[%clk 0:04:39.8]} 12. dxe5 {[%clk 0:04:46.6]} 12... Nxe5
{[%clk 0:04:38.9]} 13. Nxe5 {[%clk 0:04:45.6]} 13... Bxe5 {[%clk 0:04:37.8]} 14.
Rb1 {[%clk 0:04:44.7]} 14... Rb8 {[%clk 0:04:29.8]} 15. Bb2 {[%clk 0:04:39.1]}
15... Bxb2 {[%clk 0:04:24]} 16. Rxb2 {[%clk 0:04:39]} 16... b6 {[%clk
0:04:22.8]} 17. Qa4 {[%clk 0:04:33.9]} 17... Qd7 {[%clk 0:04:16.9]} 18. Qxd7
{[%clk 0:04:28.6]} 18... Bxd7 {[%clk 0:04:16.8]} 19. Rd1 {[%clk 0:04:27]} 19...
Be6 {[%clk 0:04:11.3]} 20. a4 {[%clk 0:04:25.9]} 20... Rfd8 {[%clk 0:04:08.4]}
21. Ra1 {[%clk 0:04:12.6]} 21... a6 {[%clk 0:03:58.2]} 22. Bf1 {[%clk
0:04:10.2]} 22... a5 {[%clk 0:03:52.2]} 23. Rab1 {[%clk 0:04:05.9]} 23... Rd6
{[%clk 0:03:51.1]} 24. Rb5 {[%clk 0:03:59.1]} 24... Rc8 {[%clk 0:03:19.8]} 25.
R5b2 {[%clk 0:02:47.7]} 25... Bf5 {[%clk 0:02:56.6]} 26. Re1 {[%clk 0:02:28.2]}
26... Rc2 {[%clk 0:02:37.4]} 27. Rxc2 {[%clk 0:02:21.5]} 27... Bxc2 {[%clk
0:02:37.3]} 28. Bb5 {[%clk 0:02:20.4]} 28... Bd3 {[%clk 0:02:31.5]} 29. Rd1
{[%clk 0:02:17]} 29... Bxb5 {[%clk 0:02:29.6]} 30. Rxd6 {[%clk 0:02:15.9]} 30...
Bxa4 {[%clk 0:02:29.5]} 31. Rxb6 {[%clk 0:02:15]} 31... Bc2 {[%clk 0:02:27.3]}
32. Ra6 {[%clk 0:02:12.3]} 32... a4 {[%clk 0:02:26.4]} 33. f3 {[%clk 0:02:09.4]}
33... Bb3 {[%clk 0:02:22.6]} 34. e4 {[%clk 0:02:07.4]} 34... Kf8 {[%clk
0:02:19.2]} 35. Kf2 {[%clk 0:02:06.7]} 35... Ke7 {[%clk 0:02:17.9]} 36. Ke3
{[%clk 0:02:05.9]} 36... h6 {[%clk 0:02:13.2]} 37. Kd4 {[%clk 0:02:05.1]} 37...
h5 {[%clk 0:02:11.9]} 38. h4 {[%clk 0:02:03.5]} 38... f6 {[%clk 0:02:09]} 39. f4
{[%clk 0:02:02.2]} 39... Kf7 {[%clk 0:02:04.2]} 40. Kc5 {[%clk 0:01:57.6]} 40...
Ke7 {[%clk 0:01:52.5]} 41. Ra7+ {[%clk 0:01:53.6]} 41... Ke6 {[%clk 0:01:41.6]}
42. Ra6+ {[%clk 0:01:52.6]} 42... Ke7 {[%clk 0:01:40]} 43. e5 {[%clk 0:01:51.9]}
43... fxe5 {[%clk 0:01:37.5]} 44. fxe5 {[%clk 0:01:51.2]} 44... Kf7 {[%clk
0:01:36.6]} 45. Rf6+ {[%clk 0:01:49.3]} 45... Kg7 {[%clk 0:01:35.4]} 46. Rf3
{[%clk 0:01:44.5]} 46... Bc2 {[%clk 0:01:29.6]} 47. e6 {[%clk 0:01:39.9]} 47...
Bf5 {[%clk 0:01:28.7]} 48. Kd6 {[%clk 0:01:37.2]} 48... Kf8 {[%clk 0:01:27.2]}
49. Rc3 {[%clk 0:01:33.3]} 49... Kg7 {[%clk 0:01:23.1]} 50. Ke5 {[%clk
0:01:32.4]} 50... Kf8 {[%clk 0:01:21.3]} 51. Rc8+ {[%clk 0:01:31]} 51... Ke7
{[%clk 0:01:19.9]} 52. Rc7+ {[%clk 0:01:30.2]} 52... Kd8 {[%clk 0:01:18.6]} 53.
Ra7 {[%clk 0:01:29.3]} 53... Bc2 {[%clk 0:01:16.6]} 54. Kd6 {[%clk 0:01:28.3]}
54... Kc8 {[%clk 0:01:14.8]} 55. e7 {[%clk 0:01:27]} 55... Kb8 {[%clk
0:01:14.3]} 56. Ra5 {[%clk 0:01:23.7]} 56... Bf5 {[%clk 0:01:08.9]} 57. e8=Q+
{[%clk 0:01:22.9]} 57... Bc8 {[%clk 0:01:07.3]} 58. Rb5+ {[%clk 0:01:21.1]}
58... Ka7 {[%clk 0:01:04.8]} 59. Qxc8 {[%clk 0:01:20.2]} 59... a3 {[%clk
0:01:04.4]} 60. Qb7# {[%clk 0:01:19.5]} 1-0

[Event "Live Chess"]
[Site "Chess.com"]
[Date "2023.05.20"]
[Round "-"]
[White "Ferrarifan27"]
[Black "FailsGambits"]
[Result "1-0"]
[WhiteElo "2065"]
[BlackElo "1321"]
[TimeControl "300"]
[EndTime "14:05:17 PDT"]
[Termination "Ferrarifan27 won by resignation"]

1. e4 {[%clk 0:04:57.2]} 1... e5 {[%clk 0:04:59.3]} 2. Nf3 {[%clk 0:04:55.9]}
2... Nc6 {[%clk 0:04:58.5]} 3. Bb5 {[%clk 0:04:54.8]} 3... a6 {[%clk 0:04:57.9]}
4. Ba4 {[%clk 0:04:53.7]} 4... Nf6 {[%clk 0:04:56.2]} 5. O-O {[%clk 0:04:52.1]}
5... Be7 {[%clk 0:04:52.7]} 6. Re1 {[%clk 0:04:50.8]} 6... d6 {[%clk 0:04:51.4]}
7. d4 {[%clk 0:04:48.9]} 7... exd4 {[%clk 0:04:49.6]} 8. Nxd4 {[%clk 0:04:48]}
8... Bd7 {[%clk 0:04:41.7]} 9. Nxc6 {[%clk 0:04:43.6]} 9... Bxc6 {[%clk
0:04:40.5]} 10. Bxc6+ {[%clk 0:04:42.4]} 10... bxc6 {[%clk 0:04:40.4]} 11. Nc3
{[%clk 0:04:41]} 11... O-O {[%clk 0:04:38.7]} 12. Bf4 {[%clk 0:04:37.7]} 12...
Re8 {[%clk 0:04:27.4]} 13. Qf3 {[%clk 0:04:35.8]} 13... Nd7 {[%clk 0:04:21.7]}
14. Qg3 {[%clk 0:04:30.9]} 14... Bh4 {[%clk 0:04:05.4]} 15. Qg4 {[%clk
0:04:26.6]} 15... Ne5 {[%clk 0:03:52.2]} 16. Qh5 {[%clk 0:04:24.1]} 16... Bf6
{[%clk 0:03:06.7]} 17. Rad1 {[%clk 0:04:17.7]} 17... Ng6 {[%clk 0:02:55.9]} 18.
Bd2 {[%clk 0:04:09]} 18... Re5 {[%clk 0:02:42.7]} 19. Qg4 {[%clk 0:03:56.7]}
19... d5 {[%clk 0:02:30.4]} 20. f4 {[%clk 0:03:46.7]} 20... Re8 {[%clk
0:01:59.5]} 21. e5 {[%clk 0:03:37.5]} 21... Be7 {[%clk 0:01:52.7]} 22. f5 {[%clk
0:03:35.6]} 22... Bc5+ {[%clk 0:01:48.8]} 23. Kh1 {[%clk 0:03:30]} 23... Nxe5
{[%clk 0:01:44.6]} 24. Qg3 {[%clk 0:03:24.5]} 24... Bd6 {[%clk 0:01:36.1]} 25.
Bg5 {[%clk 0:03:14.9]} 25... f6 {[%clk 0:01:30.5]} 26. Bf4 {[%clk 0:03:09.4]}
26... Qe7 {[%clk 0:01:23.9]} 27. Ne2 {[%clk 0:03:01.8]} 27... Rab8 {[%clk
0:01:16.8]} 28. b3 {[%clk 0:02:59.4]} 28... Rb4 {[%clk 0:01:13.8]} 29. Nd4
{[%clk 0:02:56.1]} 29... Bc5 {[%clk 0:00:58]} 30. c3 {[%clk 0:02:52.4]} 30...
Bxd4 {[%clk 0:00:34.3]} 31. cxd4 {[%clk 0:02:45.2]} 1-0

[Event "Live Chess"]
[Site "Chess.com"]
[Date "2023.05.20"]
[Round "-"]
[White "Bot_Boy"]
[Black "omisoc"]
[Result "0-1"]
[WhiteElo "324"]
[BlackElo "2146"]
[TimeControl "300"]
[EndTime "14:05:26 PDT"]
[Termination "omisoc won on time"]

1. e3 {[%clk 0:04:53.4]} 1... Nf6 {[%clk 0:04:53.8]} 2. Nc3 {[%clk 0:04:46.7]}
2... g6 {[%clk 0:04:49.3]} 3. f3 {[%clk 0:04:45.7]} 3... Bg7 {[%clk 0:04:47.7]}
4. d4 {[%clk 0:04:42.9]} 4... d6 {[%clk 0:04:44]} 5. Bc4 {[%clk 0:04:40.5]} 5...
O-O {[%clk 0:04:41.5]} 6. Nge2 {[%clk 0:04:33.2]} 6... c6 {[%clk 0:04:33]} 7.
Bd3 {[%clk 0:04:18.1]} 7... Nbd7 {[%clk 0:04:24.1]} 8. Nf4 {[%clk 0:04:13.1]}
8... e5 {[%clk 0:04:21.4]} 9. dxe5 {[%clk 0:03:58.5]} 9... dxe5 {[%clk
0:04:18.8]} 10. Nh3 {[%clk 0:03:48.7]} 10... Nc5 {[%clk 0:04:14.4]} 11. Ng5
{[%clk 0:03:10.5]} 11... Nd5 {[%clk 0:03:54.9]} 12. h4 {[%clk 0:02:55.7]} 12...
Nxd3+ {[%clk 0:03:49.5]} 13. cxd3 {[%clk 0:02:50.6]} 13... Nb4 {[%clk
0:03:47.6]} 14. Ke2 {[%clk 0:02:24.3]} 14... h6 {[%clk 0:03:34.6]} 15. Nge4
{[%clk 0:02:13.6]} 15... f5 {[%clk 0:03:32.6]} 16. Nf2 {[%clk 0:02:00.9]} 16...
Be6 {[%clk 0:03:17.4]} 17. h5 {[%clk 0:01:52.4]} 17... g5 {[%clk 0:03:15.2]} 18.
e4 {[%clk 0:01:30.3]} 18... f4 {[%clk 0:02:43.3]} 19. a3 {[%clk 0:01:26.1]}
19... Na6 {[%clk 0:02:40]} 20. b4 {[%clk 0:01:09.3]} 20... Nc7 {[%clk
0:02:25.5]} 21. Rb1 {[%clk 0:01:02.4]} 21... Bf7 {[%clk 0:02:15.7]} 22. b5
{[%clk 0:00:43.3]} 22... Ne6 {[%clk 0:02:12.6]} 23. bxc6 {[%clk 0:00:34.1]}
23... Nd4+ {[%clk 0:02:10]} 24. Ke1 {[%clk 0:00:29.1]} 24... bxc6 {[%clk
0:02:03.4]} 25. Rb7 {[%clk 0:00:15.3]} 25... Qa5 {[%clk 0:01:54.7]} 26. Qd2
{[%clk 0:00:02]} 26... Rab8 {[%clk 0:01:49.3]} 0-1

[Event "Live Chess"]
[Site "Chess.com"]
[Date "2023.05.20"]
[Round "-"]
[White "Bob2pen"]
[Black "WelshTiger"]
[Result "1-0"]
[WhiteElo "1851"]
[BlackElo "2381"]
[TimeControl "300"]
[EndTime "14:05:26 PDT"]
[Termination "Bob2pen won by checkmate"]

1. c4 {[%clk 0:04:56.3]} 1... e6 {[%clk 0:04:57.4]} 2. g3 {[%clk 0:04:55]} 2...
d5 {[%clk 0:04:57.3]} 3. Bg2 {[%clk 0:04:53.9]} 3... Nf6 {[%clk 0:04:54.9]} 4.
Nf3 {[%clk 0:04:51.3]} 4... Be7 {[%clk 0:04:51.6]} 5. O-O {[%clk 0:04:48.2]}
5... O-O {[%clk 0:04:50.7]} 6. b3 {[%clk 0:04:46.9]} 6... c5 {[%clk 0:04:46.7]}
7. Bb2 {[%clk 0:04:44.3]} 7... d4 {[%clk 0:04:45.6]} 8. e3 {[%clk 0:04:43]} 8...
Nc6 {[%clk 0:04:44.9]} 9. exd4 {[%clk 0:04:40.4]} 9... cxd4 {[%clk 0:04:44.8]}
10. d3 {[%clk 0:04:38.7]} 10... a5 {[%clk 0:04:43.5]} 11. Nbd2 {[%clk
0:04:36.7]} 11... e5 {[%clk 0:04:32.5]} 12. Re1 {[%clk 0:04:35.2]} 12... Qc7
{[%clk 0:04:32]} 13. Qe2 {[%clk 0:04:24.5]} 13... Nd7 {[%clk 0:04:15.3]} 14. Qe4
{[%clk 0:04:13.8]} 14... Nc5 {[%clk 0:04:08.4]} 15. Qe2 {[%clk 0:04:08.8]} 15...
Bf5 {[%clk 0:04:04.4]} 16. Nxe5 {[%clk 0:03:47.8]} 16... Nxe5 {[%clk 0:03:32.6]}
17. Qxe5 {[%clk 0:03:45.4]} 17... Qxe5 {[%clk 0:03:14.6]} 18. Rxe5 {[%clk
0:03:43.4]} 18... Nxd3 {[%clk 0:03:12.4]} 19. Rxe7 {[%clk 0:03:05]} 19... Nxb2
{[%clk 0:03:11.1]} 20. Bxb7 {[%clk 0:03:02.7]} 20... Rab8 {[%clk 0:03:07.3]} 21.
Bd5 {[%clk 0:02:59.1]} 21... a4 {[%clk 0:02:49.4]} 22. Rb1 {[%clk 0:02:46.2]}
22... Bxb1 {[%clk 0:02:47]} 23. Nxb1 {[%clk 0:02:43.8]} 23... axb3 {[%clk
0:02:46.3]} 24. axb3 {[%clk 0:02:42.8]} 24... Rxb3 {[%clk 0:02:45.5]} 25. Nd2
{[%clk 0:02:41.6]} 25... Ra3 {[%clk 0:02:36.7]} 26. Kg2 {[%clk 0:02:37.7]} 26...
Na4 {[%clk 0:02:26.2]} 27. Nf3 {[%clk 0:02:29.6]} 27... d3 {[%clk 0:02:24.4]}
28. Ne5 {[%clk 0:01:59]} 28... d2 {[%clk 0:02:22.6]} 29. Nxf7 {[%clk 0:01:54.5]}
29... d1=Q {[%clk 0:02:16.7]} 30. Nh6+ {[%clk 0:01:45]} 30... Kh8 {[%clk
0:02:15.5]} 31. Nf7+ {[%clk 0:01:43.7]} 31... Rxf7 {[%clk 0:02:14.1]} 32. Re8+
{[%clk 0:01:41.9]} 32... Rf8 {[%clk 0:02:12.9]} 33. Rxf8# {[%clk 0:01:40.6]} 1-0

[Event "Live Chess"]
[Site "Chess.com"]
[Date "2023.05.20"]
[Round "-"]
[White "Stanbad1"]
[Black "wot-not"]
[Result "1-0"]
[WhiteElo "2409"]
[BlackElo "1520"]
[TimeControl "300"]
[EndTime "14:05:27 PDT"]
[Termination "Stanbad1 won by resignation"]

1. d4 {[%clk 0:04:57.2]} 1... Nf6 {[%clk 0:04:58.6]} 2. Bg5 {[%clk 0:04:50.9]}
2... d5 {[%clk 0:04:54.8]} 3. Nd2 {[%clk 0:04:49]} 3... Bg4 {[%clk 0:04:49.9]}
4. Ngf3 {[%clk 0:04:46.6]} 4... Bxf3 {[%clk 0:04:47.3]} 5. Nxf3 {[%clk
0:04:45.1]} 5... e6 {[%clk 0:04:46.3]} 6. e3 {[%clk 0:04:43.3]} 6... Be7 {[%clk
0:04:45.7]} 7. Bd3 {[%clk 0:04:41.3]} 7... O-O {[%clk 0:04:44.9]} 8. O-O {[%clk
0:04:39.7]} 8... h6 {[%clk 0:04:44.3]} 9. Bf4 {[%clk 0:04:38.2]} 9... c6 {[%clk
0:04:38.6]} 10. c3 {[%clk 0:04:36.7]} 10... Bd6 {[%clk 0:04:36]} 11. Ne5 {[%clk
0:04:34.4]} 11... Qe7 {[%clk 0:04:24.2]} 12. Qf3 {[%clk 0:04:30.5]} 12... Nbd7
{[%clk 0:04:17.5]} 13. Qg3 {[%clk 0:04:27.1]} 13... Nh5 {[%clk 0:04:05]} 14.
Nxc6 {[%clk 0:04:24.2]} 14... Nxg3 {[%clk 0:03:59.9]} 15. Nxe7+ {[%clk
0:04:22.2]} 15... Bxe7 {[%clk 0:03:59.1]} 16. Bxg3 {[%clk 0:04:21.4]} 16... Bf6
{[%clk 0:03:49]} 17. Rac1 {[%clk 0:04:18.7]} 17... Rfc8 {[%clk 0:03:48]} 18. c4
{[%clk 0:04:15.8]} 18... dxc4 {[%clk 0:03:46.5]} 19. Bxc4 {[%clk 0:04:14.4]}
19... Nf8 {[%clk 0:03:43.3]} 20. Bd3 {[%clk 0:04:11.6]} 20... Nd7 {[%clk
0:03:38]} 21. Be4 {[%clk 0:04:10.1]} 21... Rxc1 {[%clk 0:03:29]} 22. Rxc1 {[%clk
0:04:07.2]} 22... e5 {[%clk 0:03:23.3]} 23. Bxb7 {[%clk 0:04:05.2]} 23... Rb8
{[%clk 0:03:22]} 24. Rc8+ {[%clk 0:04:01.9]} 24... Rxc8 {[%clk 0:03:20.7]} 25.
Bxc8 {[%clk 0:04:01.8]} 25... Nb6 {[%clk 0:03:17.8]} 26. dxe5 {[%clk 0:04:00.6]}
26... Nxc8 {[%clk 0:03:14.5]} 27. exf6 {[%clk 0:03:59.7]} 27... gxf6 {[%clk
0:03:14.1]} 28. Kf1 {[%clk 0:03:59.1]} 28... Kg7 {[%clk 0:03:12.8]} 29. Ke2
{[%clk 0:03:58.3]} 29... Kg6 {[%clk 0:03:11.4]} 30. Kd3 {[%clk 0:03:57.4]} 30...
f5 {[%clk 0:03:10.8]} 31. Bc7 {[%clk 0:03:55.9]} 31... Ne7 {[%clk 0:03:07.3]}
32. f4 {[%clk 0:03:54.8]} 32... Nd5 {[%clk 0:03:04.5]} 33. Bd6 {[%clk
0:03:53.8]} 33... a6 {[%clk 0:03:03.1]} 34. Kd4 {[%clk 0:03:52.4]} 34... Nb6
{[%clk 0:03:01.7]} 35. b3 {[%clk 0:03:51.2]} 35... Kf6 {[%clk 0:02:59.6]} 36.
Bc7 {[%clk 0:03:48.9]} 36... Nd7 {[%clk 0:02:58.1]} 37. Kd5 {[%clk 0:03:47.9]}
37... h5 {[%clk 0:02:54.2]} 38. Bd8+ {[%clk 0:03:44.7]} 38... Kg6 {[%clk
0:02:51.4]} 39. Kc6 {[%clk 0:03:43.2]} 39... Nf6 {[%clk 0:02:49.6]} 40. Bxf6
{[%clk 0:03:41.4]} 40... Kxf6 {[%clk 0:02:47.3]} 41. h4 {[%clk 0:03:40.4]} 41...
Ke6 {[%clk 0:02:46.2]} 42. b4 {[%clk 0:03:39]} 1-0